fUSD/lending_fUSD_20251215
["ID","MTS","AMOUNT","RATE_DAILY","PERIOD"]
[398569482,1765840249387,-312.158753,0.00016438,2]
[398569483,1765840249396,-312.158753,0.00016438,2]
[398569484,1765840249409,-312.158753,0.00016438,2]
[398569485,1765840249422,-312.158753,0.00016438,2]
[398569486,1765840249431,-312.158753,0.00016438,2]
[398569487,1765840249441,-312.158753,0.00016438,2]
[398569488,1765840249451,-312.158753,0.00016438,2]
[398569489,1765840249460,-312.158753,0.00016438,2]
[398569490,1765840249470,-312.158753,0.00016438,2]
[398569491,1765840249479,-312.158753,0.00016438,2]
[398569492,1765840249489,-312.158753,0.00016438,2]
[398569493,1765840249498,-312.158753,0.00016438,2]
[398569494,1765840249510,-312.158753,0.00016438,2]
[398569495,1765840249523,-312.158753,0.00016438,2]
[398569496,1765840249532,-312.158753,0.00016438,2]
[398569497,1765840249542,-152.299008,0.00016438,2]
[398569498,1765840249551,-170.417071,0.00016438,2]
[398569499,1765840249560,-170.417071,0.00016438,2]
[398569500,1765840249569,-170.417071,0.00016438,2]
[398569501,1765840249578,-170.417071,0.00016438,2]
[398569502,1765840249588,-170.417071,0.00016438,2]
[398569503,1765840249597,-170.417071,0.00016438,2]
[398569504,1765840249606,-170.417071,0.00016438,2]
[398569505,1765840249615,-170.417071,0.00016438,2]
[398569506,1765840249624,-170.417071,0.00016438,2]
[398569507,1765840249634,-190.5,0.00016438,2]
[398569508,1765840249643,-170.417071,0.00016438,2]
[398569509,1765840249652,-170.417071,0.00016438,2]
[398569510,1765840249663,-190.5,0.00016438,2]
[398569511,1765840249672,-170.417071,0.00016438,2]
[398569512,1765840249682,-190.5,0.00016438,2]
[398569513,1765840249691,-170.417071,0.00016438,2]
[398569514,1765840249703,-190.5,0.00016438,2]
[398569515,1765840249714,-151.0,0.00016438,2]
[398569516,1765840249723,-170.417071,0.00016438,2]
[398569517,1765840249733,-190.5,0.00016438,2]
[398569518,1765840249742,-151.0,0.00016438,2]
[398569519,1765840249751,-170.417071,0.00016438,2]
[398569520,1765840249759,-190.5,0.00016438,2]
[398569521,1765840249768,-170.417071,0.00016438,2]
[398569522,1765840249778,-151.0,0.00016438,2]
[398569523,1765840249787,-190.5,0.00016438,2]
[398569524,1765840249797,-170.417071,0.00016438,2]
[398569525,1765840249806,-151.0,0.00016438,2]
[398569526,1765840249815,-190.5,0.00016438,2]
[398569527,1765840249825,-170.417071,0.00016438,2]
[398569528,1765840249835,-174.328063,0.00016438,2]
[398569529,1765840249844,-170.417071,0.00016438,2]
[398569530,1765840249854,-190.5,0.00016438,2]
[398569531,1765840249863,-170.417075,0.00016438,2]
[398569532,1765840249872,-190.5,0.00016438,2]
[398569533,1765840249882,-151.0,0.00016438,2]
[398569534,1765840249892,-190.5,0.00016438,2]
[398569535,1765840249901,-151.0,0.00016438,2]
[398569536,1765840249913,-190.5,0.00016438,2]
[398569537,1765840249922,-190.5,0.00016438,2]
[398569538,1765840249931,-190.5,0.00016438,2]
[398569539,1765840249940,-190.5,0.00016438,2]
[398569540,1765840249949,-162.241771,0.00016438,2]
[398569541,1765840249958,-190.5,0.00016438,2]
[398569542,1765840249967,-162.241771,0.00016438,2]
[398569543,1765840249976,-190.5,0.00016438,2]
[398569544,1765840249986,-162.241771,0.00016438,2]
[398569545,1765840249998,-190.5,0.00016438,2]
[398569546,1765840250007,-162.241771,0.00016438,2]
[398569547,1765840250016,-190.5,0.00016438,2]
[398569548,1765840250026,-162.241771,0.00016438,2]
[398569549,1765840250035,-190.5,0.00016438,2]
[398569550,1765840250045,-162.241771,0.00016438,2]
[398569551,1765840250055,-162.241771,0.00016438,2]
[398569552,1765840250064,-162.241771,0.00016438,2]
[398569553,1765840250074,-162.241771,0.00016438,2]
[398569554,1765840250083,-162.241771,0.00016438,2]
[398569555,1765840250093,-162.241771,0.00016438,2]
[398569556,1765840250102,-162.241771,0.00016438,2]
[398569557,1765840250111,-162.241771,0.00016438,2]
[398569558,1765840250120,-151.0,0.00016438,2]
[398569559,1765840250129,-162.241771,0.00016438,2]
[398569560,1765840250139,-151.0,0.00016438,2]
[398569561,1765840250148,-151.0,0.00016438,2]
[398569562,1765840250157,-162.241771,0.00016438,2]
[398569563,1765840250167,-151.0,0.00016438,2]
[398569564,1765840250176,-151.480928,0.00016438,2]
[398569565,1765840250194,-162.241771,0.00016438,2]
[398569566,1765840250205,-151.0,0.00016438,2]
[398569567,1765840250214,-162.241771,0.00016438,2]
[398569568,1765840250223,-151.0,0.00016438,2]
[398569569,1765840250232,-162.241771,0.00016438,2]
[398569570,1765840250242,-151.0,0.00016438,2]
[398569571,1765840250251,-162.241771,0.00016438,2]
[398569572,1765840250260,-151.0,0.00016438,2]
[398569573,1765840250269,-162.241763,0.00016438,2]
[398569574,1765840250279,-151.0,0.00016438,2]
[398569575,1765840250288,-151.0,0.00016438,2]
[398569576,1765840250297,-151.0,0.00016438,2]
[398569577,1765840250307,-151.0,0.00016438,2]
[398569578,1765840250316,-151.0,0.00016438,2]
[398569579,1765840250326,-151.0,0.00016438,2]
[398569580,1765840250335,-165.579034,0.00016438,2]
[398569581,1765840250345,-151.0,0.00016438,2]
[398569582,1765840250356,-165.579034,0.00016438,2]
[398569583,1765840250366,-151.0,0.00016438,2]
[398569584,1765840250376,-165.579034,0.00016438,2]
[398569585,1765840250386,-151.0,0.00016438,2]
[398569586,1765840250396,-165.579034,0.00016438,2]
[398569587,1765840250405,-151.0,0.00016438,2]
[398569588,1765840250414,-165.579034,0.00016438,2]
[398569589,1765840250423,-151.0,0.00016438,2]
[398569590,1765840250433,-165.579034,0.00016438,2]
[398569591,1765840250442,-300.700965,0.00016438,2]
[398569592,1765840250453,-165.579034,0.00016438,2]
[398569593,1765840250463,-165.579034,0.00016438,2]
[398569594,1765840250473,-165.579034,0.00016438,2]
[398569595,1765840250483,-165.579034,0.00016438,2]
[398569596,1765840250492,-165.579034,0.00016438,2]
[398569597,1765840250501,-165.579034,0.00016438,2]
[398569598,1765840250510,-165.579034,0.00016438,2]
[398569599,1765840250520,-165.579034,0.00016438,2]
[398569600,1765840250530,-165.579034,0.00016438,2]
[398569601,1765840250539,-165.579034,0.00016438,2]
[398569602,1765840250549,-403.095798,0.00016438,2]
[398569603,1765840250558,-165.579034,0.00016438,2]
[398569604,1765840250567,-151.0,0.00016438,2]
[398569605,1765840250577,-403.095798,0.00016438,2]
[398569606,1765840250587,-165.579034,0.00016438,2]
[398569607,1765840250596,-151.0,0.00016438,2]
[398569608,1765840250605,-403.095798,0.00016438,2]
[398569609,1765840250617,-165.579034,0.00016438,2]
[398569610,1765840250626,-403.095798,0.00016438,2]
[398569611,1765840250635,-210.125317,0.00016438,2]
[398569612,1765840250646,-151.0,0.00016438,2]
[398569613,1765840250656,-165.579034,0.00016438,2]
[398569614,1765840250665,-210.125317,0.00016438,2]
[398569615,1765840250675,-403.095798,0.00016438,2]
[398569616,1765840250684,-151.0,0.00016438,2]
[398569617,1765840250693,-210.125317,0.00016438,2]
[398569618,1765840250703,-152.963358,0.00016438,2]
[398569619,1765840250713,-403.095798,0.00016438,2]
[398569620,1765840250722,-151.0,0.00016438,2]
[398569621,1765840250732,-210.125317,0.00016438,2]
[398569622,1765840250741,-403.095798,0.00016438,2]
[398569623,1765840250750,-152.75203,0.00016438,2]
[398569624,1765840250760,-210.125317,0.00016438,2]
[398569625,1765840250769,-403.095798,0.00016438,2]
[398569626,1765840250780,-210.125317,0.00016438,2]
[398569627,1765840250790,-308.29877,0.00016438,2]
[398569628,1765840250799,-210.125317,0.00016438,2]
[398569629,1765840250810,-403.095798,0.00016438,2]
[398569630,1765840250821,-308.29877,0.00016438,2]
[398569631,1765840250831,-210.125317,0.00016438,2]
[398569632,1765840250842,-403.095798,0.00016438,2]
[398569633,1765840250852,-308.29877,0.00016438,2]
[398569634,1765840250862,-210.125317,0.00016438,2]
[398569635,1765840250875,-151.0,0.00016438,2]
[398569636,1765840250884,-308.29877,0.00016438,2]
[398569637,1765840250894,-210.125317,0.00016438,2]
[398569638,1765840250904,-403.095798,0.00016438,2]
[398569639,1765840250913,-151.0,0.00016438,2]
[398569640,1765840250923,-308.29877,0.00016438,2]
[398569641,1765840250933,-210.125317,0.00016438,2]
[398569642,1765840250943,-403.095798,0.00016438,2]
[398569643,1765840250952,-151.0,0.00016438,2]
[398569644,1765840250963,-308.29877,0.00016438,2]
[398569645,1765840250973,-210.125317,0.00016438,2]
[398569646,1765840250985,-403.095798,0.00016438,2]
[398569647,1765840251004,-308.29877,0.00016438,2]
[398569648,1765840251014,-151.0,0.00016438,2]
[398569649,1765840251023,-210.125317,0.00016438,2]
[398569650,1765840251034,-403.095798,0.00016438,2]
[398569651,1765840251044,-308.29877,0.00016438,2]
[398569652,1765840251053,-151.0,0.00016438,2]
[398569653,1765840251063,-210.125317,0.00016438,2]
[398569654,1765840251072,-403.095798,0.00016438,2]
[398569655,1765840251081,-312.158753,0.00016438,2]
[398569656,1765840251091,-308.29877,0.00016438,2]
[398569657,1765840251101,-151.0,0.00016438,2]
[398569658,1765840251112,-210.125317,0.00016438,2]
[398569659,1765840251122,-403.095798,0.00016438,2]
[398569660,1765840251131,-312.158753,0.00016438,2]
[398569661,1765840251141,-308.29877,0.00016438,2]
[398569662,1765840251150,-210.125317,0.00016438,2]
[398569663,1765840251160,-403.095798,0.00016438,2]
[398569664,1765840251171,-312.158753,0.00016438,2]
[398569665,1765840251181,-308.29877,0.00016438,2]
[398569666,1765840251190,-151.0,0.00016438,2]
[398569667,1765840251200,-210.125317,0.00016438,2]
[398569668,1765840251210,-403.095798,0.00016438,2]
[398569669,1765840251220,-151.0,0.00016438,2]
[398569670,1765840251230,-312.158753,0.00016438,2]
[398569671,1765840251240,-210.125317,0.00016438,2]
[398569672,1765840251250,-308.29877,0.00016438,2]
[398569673,1765840251260,-403.095798,0.00016438,2]
[398569674,1765840251270,-210.125317,0.00016438,2]
[398569675,1765840251280,-308.29877,0.00016438,2]
[398569676,1765840251290,-256.812514,0.00016438,2]
[398569677,1765840251299,-403.095794,0.00016438,2]
[398569678,1765840251471,-210.12531,0.00016438,2]
[398569679,1765840251519,-308.29877,0.00016438,2]
[398569680,1765840251529,-308.29877,0.00016438,2]
[398569681,1765840251539,-159.525935,0.00016438,2]
[398569682,1765840251548,-308.29877,0.00016438,2]
[398569683,1765840251557,-159.525935,0.00016438,2]
[398569684,1765840251567,-151.0,0.00016438,2]
[398569685,1765840251576,-308.29877,0.00016438,2]
[398569686,1765840251586,-159.525935,0.00016438,2]
[398569687,1765840251597,-151.0,0.00016438,2]
[398569688,1765840251607,-308.29877,0.00016438,2]
[398569689,1765840251617,-159.525935,0.00016438,2]
[398569690,1765840251627,-151.0,0.00016438,2]
[398569691,1765840251636,-308.29877,0.00016438,2]
[398569692,1765840251646,-159.525935,0.00016438,2]
[398569693,1765840251655,-151.0,0.00016438,2]
[398569694,1765840251665,-308.298765,0.00016438,2]
[398569695,1765840251675,-159.525935,0.00016438,2]
[398569696,1765840251684,-151.0,0.00016438,2]
[398569697,1765840251694,-159.525935,0.00016438,2]
[398569698,1765840251704,-151.0,0.00016438,2]
[398569699,1765840251714,-159.525935,0.00016438,2]
[398569700,1765840251726,-151.0,0.00016438,2]
[398569701,1765840251736,-159.525935,0.00016438,2]
[398569702,1765840251746,-151.0,0.00016438,2]
[398569703,1765840251755,-154.642951,0.00016438,2]
[398569704,1765840251765,-159.525935,0.00016438,2]
[398569705,1765840251774,-151.0,0.00016438,2]
[398569706,1765840251783,-159.525935,0.00016438,2]
[398569707,1765840251792,-151.0,0.00016438,2]
[398569708,1765840251802,-290.44801,0.00016438,2]
[398569709,1765840251811,-159.525935,0.00016438,2]
[398569710,1765840251820,-159.525935,0.00016438,2]
[398569711,1765840251830,-170.46,0.00016438,2]
[398569712,1765840251839,-150.0,0.00016438,2]
[398569713,1765840251850,-1217.45,0.00016438,2]
[398569714,1765840251860,-1217.45,0.00016438,2]
[398569715,1765840251869,-500.0,0.00016449,2]
[398569716,1765840251879,-617.74565135,0.00016499,2]
[398569717,1765840251889,-500.0,0.00016566,2]
[398569718,1765840251899,-500.0,0.00016567,2]
[398569719,1765840251908,-1961.0,0.00016568,2]
[398569720,1765840251917,-500.0,0.00016568,2]
[398569721,1765840251927,-883.46,0.00016568,2]
[398569722,1765840251936,-500.0,0.00016575,2]
[398569723,1765840251945,-13125.99980285,0.00016615,2]
[398569724,1765840251955,-8449.24472907,0.00016623,2]
[398569725,1765840251964,-240.05401799,0.00016632,2]
[398569726,1765840251973,-500.0,0.00016678,2]
[398569727,1765840251984,-500.0,0.00016703,2]
[398569728,1765840251996,-1961.0,0.00016705,2]
[398569729,1765840252006,-500.0,0.00016705,2]
[398569730,1765840252015,-500.0,0.00016712,2]
[398569731,1765840252026,-168.35,0.00016712,2]
[398569732,1765840252035,-500.0,0.00016721,2]
[398569733,1765840252045,-500.0,0.00016721,2]
[398569734,1765840252054,-156.17,0.00016785,2]
[398569735,1765840252065,-2588.0,0.00016834,2]
[398569736,1765840252074,-595.37131296,0.00016834,2]
[398569737,1765840252083,-500.0,0.0001684,2]
[398569738,1765840252093,-500.0,0.00016841,2]
[398569739,1765840252103,-1961.0,0.00016842,2]
[398569740,1765840252112,-500.0,0.00016842,2]
[398569741,1765840252121,-883.46,0.00016842,2]
[398569742,1765840252131,-500.0,0.00016849,2]
[398569743,1765840252140,-510.0,0.00016854,2]
[398569744,1765840252150,-500.0,0.00016899,2]
[398569745,1765840252159,-500.0,0.00016899,2]
[398569746,1765840252169,-502.68588287,0.00016899,2]
[398569747,1765840252178,-502.07958836,0.00016899,2]
[398569748,1765840252187,-22533.29408126,0.000169,2]
[398569749,1765840252197,-436.67511872,0.000169,2]
[398569750,1765840252206,-13125.99980285,0.000169,2]
[398569751,1765840252215,-8449.24472907,0.00016907,2]
[398569752,1765840252225,-1196.0,0.00016916,2]
[398569753,1765840252234,-911.0,0.00016916,2]
[398569754,1765840252243,-4798.0,0.00016916,2]
[398569755,1765840252252,-6522.0,0.00016916,2]
[398569756,1765840252263,-2426.0,0.00016916,2]
[398569757,1765840252272,-166.66,0.00016916,2]
[398569758,1765840252282,-500.0,0.00016942,2]
[398569759,1765840252291,-5493.0,0.00016963,2]
[398569760,1765840252301,-500.0,0.00016977,2]
[398569761,1765840252311,-1961.0,0.00016979,2]
[398569762,1765840252320,-500.0,0.00016979,2]
[398569763,1765840252330,-629.24326679,0.00016985,2]
[398569764,1765840252340,-500.0,0.00016986,2]
[398569765,1765840252349,-600.64,0.00016986,2]
[398569766,1765840252358,-53360.95,0.00016986,2]
[398569767,1765840252368,-219.45685006,0.0001699,2]
[398569768,1765840252378,-500.0,0.00016999,2]
[398569769,1765840252387,-500.0,0.00016999,2]
[398569770,1765840252396,-500.0,0.00016999,2]
[398569771,1765840252406,-16727.0,0.00017,2]
[398569772,1765840252416,-150.0,0.00017,2]
[398569773,1765840252426,-337599.24987385,0.00017,2]
[398569774,1765840252436,-172604.80757954,0.00017,2]
[398569775,1765840252446,-266856.37046914,0.00017,2]
[398569776,1765840252455,-31375.91939695,0.00017,2]
[398569777,1765840252464,-250.0,0.00017,2]
[398569778,1765840252474,-2000.0,0.00017,2]
[398569779,1765840252484,-1600.0,0.00017002,2]
[398569780,1765840252494,-240.05401799,0.0001701,2]
[398569781,1765840252503,-177.227,0.00017043,2]
[398569782,1765840252514,-150.0,0.00017043,2]
[398569783,1765840252525,-150.0,0.00017043,2]
[398569784,1765840252537,-150.0,0.00017043,2]
[398569785,1765840252547,-150.0,0.00017043,2]
[398569786,1765840252559,-150.0,0.00017043,2]
[398569787,1765840252569,-611.0,0.00017043,2]
[398569788,1765840252579,-1744.904,0.00017043,2]
[398569789,1765840252589,-1324.0,0.00017043,2]
[398569790,1765840252599,-1607.0,0.00017043,2]
[398569791,1765840252609,-465.75941396,0.00017045,2]
[398569792,1765840252618,-1000.0,0.00017063,2]
[398569793,1765840252627,-150.0,0.00017088,2]
[398569794,1765840252637,-150.0,0.00017088,2]
[398569795,1765840252646,-150.0,0.00017088,2]
[398569796,1765840252655,-150.0,0.00017088,2]
[398569797,1765840252664,-150.0,0.00017088,2]
[398569798,1765840252674,-150.0,0.00017088,2]
[398569799,1765840252683,-150.0,0.00017088,2]
[398569800,1765840252693,-150.0,0.00017088,2]
[398569801,1765840252702,-150.0,0.00017088,2]
[398569802,1765840252711,-150.0,0.00017088,2]
[398569803,1765840252721,-150.0,0.00017088,2]
[398569804,1765840252731,-311.1,0.00017107,2]
[398569805,1765840252741,-500.0,0.00017114,2]
[398569806,1765840252752,-500.0,0.00017115,2]
[398569807,1765840252761,-1961.0,0.00017116,2]
[398569808,1765840252770,-500.0,0.00017116,2]
[398569809,1765840252780,-883.46,0.00017116,2]
[398569810,1765840252789,-500.0,0.00017123,2]
[398569811,1765840252799,-13125.99980285,0.00017186,2]
[398569812,1765840252809,-150.0,0.00017188,2]
[398569813,1765840252819,-8449.24472907,0.00017192,2]
[398569814,1765840252830,-481.25235646,0.00017201,2]
[398569815,1765840252840,-420.0,0.00017208,2]
[398569816,1765840252850,-420.0,0.00017208,2]
[398569817,1765840252859,-150.0,0.00017234,2]
[398569818,1765840252869,-500.0,0.00017251,2]
[398569819,1765840252879,-1961.0,0.00017253,2]
[398569820,1765840252888,-500.0,0.00017253,2]
[398569821,1765840252897,-500.0,0.0001726,2]
[398569822,1765840252907,-600.64,0.0001726,3]
[398569823,1765840252916,-1217.45,0.0001726,2]
[398569824,1765840252925,-150.0,0.0001726,2]
[398569825,1765840252934,-2434.9,0.0001726,2]
[398569826,1765840252944,-150.0,0.0001726,2]
[398569827,1765840252954,-150.0,0.0001726,2]
[398569828,1765840252963,-178.26,0.0001726,2]
[398569829,1765840252972,-178.26,0.0001726,2]
[398569830,1765840252983,-150.0,0.0001726,2]
[398569831,1765840252995,-170.46,0.0001726,2]
[398569832,1765840253004,-150.0,0.0001726,2]
[398569833,1765840253014,-170.46,0.0001726,2]
[398569834,1765840253024,-170.46,0.0001726,2]
[398569835,1765840253034,-170.46,0.0001726,2]
[398569836,1765840253044,-150.0,0.00017288,2]
[398569837,1765840253054,-1680.0,0.00017295,2]
[398569838,1765840253065,-150.0,0.00017299,2]
[398569839,1765840253075,-430.18286634,0.00017304,2]
[398569840,1765840253085,-195.0,0.00017304,2]
[398569841,1765840253094,-193.0,0.00017304,2]
[398569842,1765840253104,-200.0,0.00017304,2]
[398569843,1765840253114,-300.0,0.00017304,2]
[398569844,1765840253123,-300.0,0.00017304,2]
[398569845,1765840253133,-2500.0,0.00017304,2]
[398569846,1765840253143,-2500.0,0.00017304,2]
[398569847,1765840253152,-2500.0,0.00017304,2]
[398569848,1765840253162,-2500.0,0.00017304,2]
[398569849,1765840253171,-2500.0,0.00017304,2]
[398569850,1765840253181,-300.0,0.00017304,2]
[398569851,1765840253191,-300.0,0.00017304,2]
[398569852,1765840253201,-300.0,0.00017304,2]
[398569853,1765840253211,-300.0,0.00017304,2]
[398569854,1765840253221,-300.0,0.00017304,2]
[398569855,1765840253230,-250.0,0.00017304,2]
[398569856,1765840253239,-195.0,0.00017304,2]
[398569857,1765840253249,-300.0,0.0001731,2]
[398569858,1765840253259,-250.0,0.00017311,2]
[398569859,1765840253269,-5112.53036941,0.00017311,3]
[398569860,1765840253279,-195.0,0.00017311,2]
[398569861,1765840253288,-150.0,0.00017325,2]
[398569862,1765840253297,-150.0,0.0001738,2]
[398569863,1765840253307,-2588.0,0.00017382,2]
[398569864,1765840253316,-617.40005154,0.00017382,2]
[398569865,1765840253331,-150.0,0.00017387,2]
[398569866,1765840253341,-500.0,0.00017388,2]
[398569867,1765840253351,-240.05401799,0.00017388,2]
[398569868,1765840253360,-1961.0,0.0001739,2]
[398569869,1765840253371,-642.97484603,0.0001739,2]
[398569870,1765840253382,-883.46,0.0001739,2]
[398569871,1765840253392,-500.0,0.00017397,2]
[398569872,1765840253402,-13125.99980285,0.00017472,2]
[398569873,1765840253412,-8449.24472907,0.00017477,2]
[398569874,1765840253423,-150.0,0.00017487,2]
[398569875,1765840253433,-5000.0,0.000175,3]
[398569876,1765840253443,-150.0,0.0001751,2]
[398569877,1765840253453,-477.59735366,0.0001751,3]
[398569878,1765840253462,-150.0,0.00017526,2]
[398569879,1765840253472,-1961.0,0.00017527,2]
[398569880,1765840253482,-500.0,0.00017534,2]
[398569881,1765840253492,-500.0,0.00017534,2]
[398569882,1765840253501,-500.0,0.00017534,2]
[398569883,1765840253511,-500.0,0.00017534,2]
[398569884,1765840253521,-500.0,0.00017534,2]
[398569885,1765840253531,-500.0,0.00017534,2]
[398569886,1765840253540,-500.0,0.00017534,2]
[398569887,1765840253550,-500.0,0.00017534,2]
[398569888,1765840253561,-500.0,0.00017534,2]
[398569889,1765840253572,-500.0,0.00017534,2]
[398569890,1765840253581,-500.0,0.00017534,2]
[398569891,1765840253591,-500.0,0.00017534,2]
[398569892,1765840253601,-500.0,0.00017534,2]
[398569893,1765840253610,-500.0,0.00017534,2]
[398569894,1765840254122,-500.0,0.00017534,2]
[398569895,1765840254131,-500.0,0.00017534,2]
[398569896,1765840254140,-500.0,0.00017534,2]
[398569897,1765840254149,-500.0,0.00017534,2]
[398569898,1765840254158,-500.0,0.00017534,2]
[398569899,1765840254167,-500.0,0.00017534,2]
[398569900,1765840254176,-500.0,0.00017534,2]
[398569901,1765840254186,-600.64,0.00017534,4]
[398569902,1765840254195,-166.66,0.00017561,2]
[398569903,1765840254204,-150.0,0.00017562,2]
[398569904,1765840254213,-150.0,0.00017562,2]
[398569905,1765840254223,-150.0,0.00017587,2]
[398569906,1765840254232,-156.17,0.00017624,2]
[398569907,1765840254241,-150.0944396,0.00017636,2]
[398569908,1765840254250,-1961.0,0.00017664,2]
[398569909,1765840254259,-883.46,0.00017664,2]
[398569910,1765840254267,-295.39785189,0.00017671,2]
[398569911,1765840254276,-150.0,0.00017672,2]
[398569912,1765840254285,-150.0,0.00017687,2]
[398569913,1765840254294,-150.0,0.00017721,2]
[398569914,1765840254303,-150.0,0.00017721,2]
[398569915,1765840254312,-150.0,0.00017721,2]
[398569916,1765840254321,-500.0,0.00017726,2]
[398569917,1765840254331,-5833.33333,0.00017744,2]
[398569918,1765840254340,-13125.99980285,0.00017757,2]
[398569919,1765840254349,-8449.24472907,0.00017761,2]
[398569920,1765840254358,-240.05401799,0.00017766,2]
[398569921,1765840254367,-155.11,0.00017767,2]
[398569922,1765840254376,-150.0,0.00017787,2]
[398569923,1765840254386,-3248.5426529,0.00017796,2]
[398569924,1765840254395,-150.0,0.000178,2]
[398569925,1765840254404,-200.0,0.000178,2]
[398569926,1765840254413,-298.0,0.000178,2]
[398569927,1765840254423,-974.0,0.000178,2]
[398569928,1765840254433,-305.0,0.000178,2]
[398569929,1765840254442,-1961.0,0.00017801,2]
[398569930,1765840254451,-600.64,0.00017808,5]
[398569931,1765840254461,-40813.2917105,0.00017812,2]
[398569932,1765840254470,-187.29,0.00017812,2]
[398569933,1765840254479,-150.0,0.00017818,2]
[398569934,1765840254488,-178.0,0.00017871,2]
[398569935,1765840254497,-150.0,0.00017887,2]
[398569936,1765840254506,-162.05,0.00017899,2]
[398569937,1765840254516,-2588.0,0.0001793,2]
[398569938,1765840254525,-640.24385345,0.0001793,2]
[398569939,1765840254535,-150.0,0.00017932,2]
[398569940,1765840254544,-1961.0,0.00017938,2]
[398569941,1765840254553,-883.46,0.00017938,2]
[398569942,1765840254563,-202.57,0.00017939,2]
[398569943,1765840254572,-178.0,0.00017958,2]
[398569944,1765840254581,-150.0,0.00017964,2]
[398569945,1765840254590,-150.0,0.00017987,2]
[398569946,1765840254599,-150.0,0.00018037,2]
[398569947,1765840254608,-150.0,0.00018037,2]
[398569948,1765840254617,-150.0,0.00018037,2]
[398569949,1765840254627,-13125.99980285,0.00018043,2]
[398569950,1765840254636,-8449.24472907,0.00018046,2]
[398569951,1765840254646,-1961.0,0.00018075,2]
[398569952,1765840254655,-254.64675391,0.00018076,2]
[398569953,1765840254664,-600.64,0.00018082,6]
[398569954,1765840254673,-961.52,0.00018082,2]
[398569955,1765840254682,-1000.0,0.00018082,2]
[398569956,1765840254692,-150.0,0.00018087,2]
[398569957,1765840254702,-250.0,0.00018092,2]
[398569958,1765840254711,-150.0,0.0001811,2]
[398569959,1765840254722,-150.0,0.00018142,2]
[398569960,1765840254731,-240.05401799,0.00018144,2]
[398569961,1765840254740,-178.0,0.00018157,2]
[398569962,1765840254750,-262.0,0.00018179,2]
[398569963,1765840254759,-262.0,0.00018183,2]
[398569964,1765840254768,-150.0,0.00018187,2]
[398569965,1765840254777,-166.68,0.00018199,2]
[398569966,1765840254786,-436.67511868,0.00018203,2]
[398569967,1765840254796,-166.66,0.00018206,2]
[398569968,1765840254805,-1961.0,0.00018212,2]
[398569969,1765840254814,-883.46,0.00018212,2]
[398569970,1765840254824,-262.0,0.00018216,2]
[398569971,1765840254833,-178.0,0.00018253,2]
[398569972,1765840254842,-254.64675391,0.00018254,2]
[398569973,1765840254851,-724.8478424,0.00018256,2]
[398569974,1765840254861,-150.0,0.00018256,2]
[398569975,1765840254870,-178.0,0.00018262,2]
[398569976,1765840254880,-150.0,0.00018274,2]
[398569977,1765840254889,-9106.6763155,0.00018275,2]
[398569978,1765840254898,-150.0,0.00018287,2]
[398569979,1765840254907,-13125.99980285,0.00018329,2]
[398569980,1765840254917,-8449.24472907,0.00018331,2]
[398569981,1765840254926,-1961.0,0.00018349,2]